[Event "5th Shenzhen Longgang Masters 2024"]
[Site "Shengzhen"]
[Date "2024.03.04"]
[Round "4.1"]
[White "Xu, Xiangyu"]
[Black "Artemiev, Vladislav"]
[Result "1/2-1/2"]
[ECO "D14"]
[WhiteElo "2623"]
[BlackElo "2711"]
[Annotator "TA"]
[PlyCount "76"]
[EventDate "2024.02.28"]
[EventType "tourn"]
[EventCountry "CHN"]
[SourceTitle "playchess.com"]
[Source "ChessBase"]
[SourceQuality "1"]
[TimeControl "40/5400+30:1800+30"]

{[%evp 20,76,8,5,9,6,12,7,7,16,13,10,6,9,10,14,30,28,37,27,37,40,52,51,58,49,52,62,54,55,67,67,67,67,67,67,67,59,62,62,71,55,54,53,54,52,52,45,39,30,48,36,47,47,52,52,52,52,88]} 1. d4 {[%emt 0:00:04]} d5 {[%emt 0:00:52]} 2. c4 {[%emt 0:00:26]} c6 {[%emt 0:01:34]} 3. cxd5 {[%emt 0:01:23]} cxd5 {[%emt 0:00:10]} 4. Bf4 {[%emt 0:00:11]} Nc6 {[%emt 0:04:44]} 5. e3 {[%emt 0:00:20]} Nf6 {[%emt 0:06:59]} 6. Nc3 {[%emt 0:01:32]} Bf5 {[%emt 0:05:22]} 7. Nf3 {[%emt 0:11:54]} e6 {[%emt 0:02:34]} 8. Qb3 {[%emt 0:00:12]} Bb4 {[%emt 0:01:34]} 9. Bb5 {[%emt 0:00:13]} O-O {[%emt 0:05:52]} 10. Bxc6 {[%emt 0:00:15]} Bxc3+ {[%emt 0:00:10]} 11. Qxc3 {[%emt 0:00:09]} Rc8 {[%emt 0:00:30] [#]} 12. Ne5 $1 {[%emt 0:00:11][%cal Oe1g1]} Ng4 {[%emt 0:01:38]} (12... bxc6 13. Qa3) 13. Nxg4 {[%emt 0:00:18]} Bxg4 {[%emt 0:00:58] [#] The position is equal.} 14. Qb4 $1 {[%emt 0:00:13]} Rxc6 {[%emt 0:00:27] Black is weak on the dark squares} 15. Qxb7 {[%emt 0:00:18]} Qc8 {[%emt 0:03:18]} 16. Qxc8 {[%emt 0:00:50]} (16. Qxa7 $2 {gets mated.} Rc1+ 17. Rxc1 Qxc1#) 16... Rfxc8 {[%emt 0:00:08]} 17. O-O {[%emt 0:00:13]} a5 {[%emt 0:08:27]} 18. f3 {[%emt 0:07:49]} Bf5 {[%emt 0:02:30]} 19. b3 {[%emt 0:00:12]} h5 {[%emt 0:03:26]} 20. h4 {[%emt 0:02:02]} a4 {[%emt 0:09:13]} 21. bxa4 {[%emt 0:01:10]} Ra8 {[%emt 0:03:02]} 22. Rfc1 {[%emt 0:02:15]} Rxc1+ {[%emt 0:00:55]} 23. Rxc1 {[%emt 0:00:09]} Rxa4 $14 {[%emt 0:00:07][%mdl 4096] Endgame. KRB-KRB} 24. Ra1 $1 {[%emt 0:00:10]} Rb4 {[%emt 0:05:46]} 25. a4 {[%emt 0:03:16][%cal Ba2a4,Ba4a5][%mdl 32]} Bd3 {[%emt 0:01:13]} 26. a5 {[%emt 0:02:46] Black must now prevent a6.} Ba6 {[%emt 0:00:09]} 27. Ra2 {[%emt 0:00:45]} f6 {[%emt 0:04:33]} 28. Bd6 {[%emt 0:03:22]} Rb1+ {[%emt 0:05:14]} 29. Kf2 {[%emt 0:00:15]} Kf7 {[%emt 0:00:45]} 30. Kg3 {[%emt 0:10:07]} g5 {[%emt 0:09:09]} 31. hxg5 {[%emt 0:02:41]} fxg5 {[%emt 0:00:07]} 32. Kh2 {[%emt 0:00:18]} Kg6 {[%emt 0:05:00]} 33. Rc2 {[%emt 0:06:20]} Bc4 {[%emt 0:00:51]} 34. Rc3 {[%emt 0:00:11]} Rb2 {[%emt 0:02:12]} 35. e4 {[%emt 0:03:27] White is slightly better.} Ra2 {[%emt 0:04:07]} 36. exd5 {[%emt 0:05:27]} Bxd5 {[%emt 0:01:56]} 37. Ra3 {[%emt 0:12:08]} Rxa3 {[%emt 0:00:21]} 38. Bxa3 {[%emt 0:00:08]} Kf5 {[%emt 0:02:00] Weighted Error Value: White=0.02 (flawless) /Black=0.04 (flawless) .  Inaccurate:     	---       	Black=1      OK:         	White=16    	Black=13     Best:        	White=2     	---        Strong:       	White=1     	---} 1/2-1/2

[Event "5th Shenzhen Longgang Masters 2024"]
[Site "Shengzhen"]
[Date "2024.03.04"]
[Round "4.2"]
[White "Dubov, Daniil"]
[Black "Yu, Yangyi"]
[Result "1/2-1/2"]
[ECO "C42"]
[WhiteElo "2708"]
[BlackElo "2720"]
[Annotator "TA"]
[PlyCount "60"]
[EventDate "2024.02.28"]
[EventType "tourn"]
[EventCountry "CHN"]
[SourceTitle "playchess.com"]
[Source "ChessBase"]
[SourceQuality "1"]
[TimeControl "40/5400+30:1800+30"]

{[%evp 22,60,46,33,42,22,28,8,6,11,10,4,0,0,0,13,19,18,29,26,18,13,27,27,17,0,0,0,0,0,0,0,0,0,0,0,0,0,0,0,0]} 1. e4 {[%emt 0:00:02]} e5 {[%emt 0:00:12]} 2. Nf3 {[%emt 0:00:08]} Nf6 {[%emt 0:01:54][%cal Bg8f6,Bf6e4,Be4d2][%mdl 32]} 3. Nxe5 {[%emt 0:00:17]} d6 {[%emt 0:00:08]} 4. Nf3 {[%emt 0:00:06]} Nxe4 {[%emt 0:00:09]} 5. d4 {[%emt 0:00:10]} d5 {[%emt 0:00:26]} 6. Bd3 {[%emt 0:00:10]} Nc6 {[%emt 0:01:14]} 7. O-O {[%emt 0:00:30]} Be7 {[%emt 0:00:08]} 8. Re1 {[%emt 0:00:28]} Bf5 {[%emt 0:03:51]} 9. Nbd2 {[%emt 0:00:23]} Nxd2 {[%emt 0:01:53]} 10. Qxd2 {[%emt 0:00:09]} Bxd3 {[%emt 0:02:24]} 11. Qxd3 {[%emt 0:00:08]} O-O {[%emt 0:00:10]} 12. c3 {[%emt 0:00:24]} Qd7 {[%emt 0:01:54]} 13. Bd2 {[%emt 0:02:01]} Rae8 {[%emt 0:08:04]} 14. Re3 {[%emt 0:11:16]} Bf6 {[%emt 0:09:41]} 15. Rae1 {[%emt 0:02:28]} Rxe3 {[%emt 0:00:12]} 16. Rxe3 {[%emt 0:00:30]} Ne7 {[%emt 0:03:34]} 17. Re1 {[%emt 0:01:48]} Ng6 {[%emt 0:03:03]} 18. Qe2 {[%emt 0:02:58]} Rd8 {[%emt 0:01:57]} 19. g3 {[%emt 0:06:13]} h6 {[%emt 0:04:39]} 20. h4 {[%emt 0:02:09]} Qg4 {[%emt 0:01:16]} 21. Nh2 {[%emt 0:01:00]} Qxe2 {[%emt 0:00:09]} 22. Rxe2 {[%emt 0:00:06]} h5 {[%emt 0:00:25]} 23. Nf3 {[%emt 0:04:30] The position is equal.} Be7 {[%emt 0:07:41]} 24. Ne5 {[%emt 0:01:20]} Nxe5 {[%emt 0:00:11]} 25. Rxe5 $11 {[%emt 0:00:07][%mdl 4096] Endgame. KRB-KRB} Bf6 {[%emt 0:00:10]} 26. Re2 {[%emt 0:00:13]} (26. Rxh5 g6 27. Rg5 (27. Rh6 $2 Bg7 $19) 27... Bxg5 28. Bxg5 Rd6) 26... Kf8 {[%emt 0:00:13]} 27. Bf4 {[%emt 0:00:08]} c6 {[%emt 0:00:09]} 28. Be5 {[%emt 0:00:16]} Bxe5 {[%emt 0:02:51]} 29. Rxe5 {[%emt 0:00:13]} g6 {[%emt 0:00:24]} 30. Kg2 {[%emt 0:00:10]} f6 {[%emt 0:00:08] Weighted Error Value: White=0.05 (flawless) /Black=0.01 (flawless) .  OK:         	White=5     	Black=15} 1/2-1/2

[Event "5th Shenzhen Longgang Masters 2024"]
[Site "Shengzhen"]
[Date "2024.03.04"]
[Round "4.3"]
[White "Erigaisi Arjun"]
[Black "Ma, Qun"]
[Result "1-0"]
[ECO "C54"]
[WhiteElo "2738"]
[BlackElo "2651"]
[Annotator "RC"]
[PlyCount "139"]
[EventDate "2024.02.28"]
[EventType "tourn"]
[EventCountry "CHN"]
[SourceTitle "playchess.com"]
[Source "ChessBase"]
[SourceQuality "1"]
[TimeControl "40/5400+30:1800+30"]

1. e4 {[%emt 0:00:08]} e5 {[%emt 0:00:15]} 2. Nf3 {[%emt 0:00:06]} Nc6 {[%emt 0:00:06]} 3. Bc4 {[%emt 0:00:06]} Bc5 {[%emt 0:00:17]} 4. c3 {[%emt 0:00:05]} Nf6 {[%emt 0:00:08]} 5. d3 {[%emt 0:00:06]} d6 {[%emt 0:00:12]} 6. Bg5 {[%emt 0:00:07]} h6 {[%emt 0:00:17]} 7. Bh4 {[%emt 0:00:05]} a6 {[%emt 0:00:36]} 8. Nbd2 {[%emt 0:00:24]} Ba7 {[%emt 0:00:26]} 9. a4 {[%emt 0:00:28]} g5 {[%emt 0:00:31]} 10. Bg3 {[%emt 0:00:06]} Qe7 {[%emt 0:00:04]} 11. O-O {[%emt 0:00:29]} Nd7 {[%emt 0:00:32]} 12. b4 {[%emt 0:00:22]} Nf8 {[%emt 0:00:07]} 13. d4 {[%emt 0:00:15]} h5 {[%emt 0:08:55]} 14. b5 {[%emt 0:01:09]} Nd8 {[%emt 0:01:46]} 15. h4 {[%emt 0:02:47]} g4 {[%emt 0:00:05]} 16. Nxe5 {[%emt 0:13:39]} dxe5 {[%emt 0:01:59]} 17. Bxe5 {[%emt 0:00:11]} Rg8 {[%emt 0:11:15]} 18. Bg3 {[%emt 0:00:20]} Ng6 {[%emt 0:00:42]} 19. Bd3 {[%emt 0:01:24]} Nxh4 {[%emt 0:09:10]} 20. e5 {[%emt 0:01:21]} Kf8 {[%emt 0:08:08]} 21. Ne4 {[%emt 0:01:55]} Nf5 {[%emt 0:00:44]} 22. Nf6 {[%emt 0:01:34]} Rh8 {[%emt 0:04:39]} 23. Qd2 {[%emt 0:13:10]} Nxg3 {[%emt 0:08:50]} 24. fxg3 {[%emt 0:00:20]} Qxe5 {[%emt 0:00:10]} 25. Rae1 {[%emt 0:07:34]} Bxd4+ {[%emt 0:01:04]} 26. cxd4 {[%emt 0:00:06]} Qxd4+ {[%emt 0:00:09]} 27. Rf2 {[%emt 0:23:03]} Ne6 {[%emt 0:09:22]} 28. Re4 {[%emt 0:00:24]} Qd6 {[%emt 0:08:05]} 29. Qc3 {[%emt 0:00:22]} Rh6 {[%emt 0:00:41]} 30. bxa6 {[%emt 0:01:35]} bxa6 {[%emt 0:08:37]} 31. Bc4 {[%emt 0:01:23]} Rb8 {[%emt 0:03:47]} 32. Re1 {[%emt 0:00:12]} Rb4 {[%emt 0:12:48]} 33. Ne4 {[%emt 0:04:08]} Qb6 {[%emt 0:00:01]} 34. a5 {[%emt 0:00:52]} Rxc4 {[%emt 0:02:30]} 35. Qd2 {[%emt 0:05:03]} Qxf2+ {[%emt 0:00:02]} 36. Qxf2 {[%emt 0:02:29]} Nd4 {[%emt 0:00:02]} 37. Ng5 {[%emt 0:00:19]} Nf5 {[%emt 0:01:14]} 38. Ne4 {[%emt 0:11:20]} Rhc6 {[%emt 0:00:38]} 39. Qb2 {[%emt 0:00:32]} Rd4 {[%emt 0:00:10]} 40. Qb8 {[%emt 0:00:00]} Rd8 {[%emt 0:00:00]} 41. Rf1 {[%emt 0:05:55]} Re8 {[%emt 0:05:34]} 42. Qb4+ {[%emt 0:09:16]} Re7 {[%emt 0:19:04]} 43. Nc3 {[%emt 0:04:56]} Be6 {[%emt 0:06:07]} 44. Nd5 {[%emt 0:02:15]} Bxd5 {[%emt 0:00:01]} 45. Rxf5 {[%emt 0:00:02]} Rc4 {[%emt 0:01:28]} 46. Qa3 {[%emt 0:02:05]} Be6 {[%emt 0:01:39]} 47. Rxh5 {[%emt 0:00:06]} Ke8 {[%emt 0:00:24]} 48. Rh8+ {[%emt 0:05:41]} Kd7 {[%emt 0:00:01]} 49. Qd3+ {[%emt 0:00:01]} Kc6 {[%emt 0:00:01]} 50. Rh6 {[%emt 0:00:02]} Rc1+ {[%emt 0:01:31]} 51. Kh2 {[%emt 0:00:06]} Rd7 {[%emt 0:00:33]} 52. Qxa6+ {[%emt 0:00:29]} Kc5 {[%emt 0:00:01]} 53. Rh5+ {[%emt 0:00:20]} Rd5 {[%emt 0:00:55]} 54. Rxd5+ {[%emt 0:03:35]} Bxd5 {[%emt 0:00:01]} 55. Qd3 {[%emt 0:00:02]} Rc4 {[%emt 0:00:39]} 56. Qd1 {[%emt 0:02:14]} Bc6 {[%emt 0:00:48]} 57. a6 {[%emt 0:03:27]} Ra4 {[%emt 0:00:04]} 58. a7 {[%emt 0:00:04]} Ra6 {[%emt 0:01:02]} 59. Qb3 {[%emt 0:00:34]} f5 {[%emt 0:00:32]} 60. Kg1 {[%emt 0:01:22]} Bb5 {[%emt 0:00:30]} 61. Qe3+ {[%emt 0:00:23]} Kd5 {[%emt 0:00:28]} 62. Kf2 {[%emt 0:01:22]} c5 {[%emt 0:00:30]} 63. Qe7 {[%emt 0:02:14]} Bc6 {[%emt 0:00:01]} 64. Ke3 {[%emt 0:00:17]} Kc4 {[%emt 0:00:05]} 65. Qe6+ {[%emt 0:01:01]} Kb5 {[%emt 0:00:04]} 66. Qb3+ {[%emt 0:00:05]} Ka5 {[%emt 0:00:02]} 67. Qb8 {[%emt 0:00:05]} Bxg2 {[%emt 0:02:11]} 68. Kd3 {[%emt 0:00:06]} Rb6 {[%emt 0:00:38]} 69. Kc4 {[%emt 0:00:39]} Rb4+ {[%emt 0:00:31]} 70. Kxc5 {[%emt 0:00:07]} 1-0

[Event "5th Shenzhen Longgang Masters 2024"]
[Site "Shengzhen"]
[Date "2024.03.04"]
[Round "4.4"]
[White "Bu, Xiangzhi"]
[Black "Giri, Anish"]
[Result "1-0"]
[ECO "D24"]
[WhiteElo "2671"]
[BlackElo "2749"]
[Annotator "TA"]
[PlyCount "145"]
[EventDate "2024.02.28"]
[EventType "tourn"]
[EventCountry "CHN"]
[SourceTitle "playchess.com"]
[Source "ChessBase"]
[SourceQuality "1"]
[TimeControl "40/5400+30:1800+30"]

{[%evp 62,145,235,255,243,186,193,193,186,206,197,195,181,189,176,192,258,258,243,258,254,236,265,260,256,261,254,265,291,280,407,309,406,413,375,400,404,405,401,377,342,312,411,397,509,497,581,567,848,816,1007,868,978,994,1003,1024,1014,700,1224,885,1216,1177,1104,1039,1885,1898,4134,1806,29974,29975,29975,1839,1795,1752,1829,1796,1807,1763,1699,1660,1704,1623,1716,1558,29985,29986]} 1. Nf3 {[%emt 0:00:03]} d5 {[%emt 0:00:05]} 2. d4 {[%emt 0:00:10]} Nf6 {[%emt 0:00:05]} 3. c4 {[%emt 0:00:09]} e6 {[%emt 0:00:05]} 4. Nc3 {[%emt 0:00:10]} dxc4 {[%emt 0:00:05]} 5. e4 {[%emt 0:01:39]} b5 {[%emt 0:00:08]} 6. Nxb5 {[%emt 0:00:18] D24: Queen's Gambit Accepted: 3 Nf3 Nf6 4 Nc3.} Nxe4 {[%emt 0:00:12]} 7. Qa4 {[%emt 0:00:07]} Nc6 $146 {[%emt 0:00:20]} ({Predecessor:} 7... c6 8. Nc3 Nxc3 9. bxc3 Ba6 10. Bxc4 Bxc4 11. Qxc4 Bd6 12. O-O Qc7 13. Rd1 O-O {½-½ Ju,W (2549)-Maghsoodloo,P (2740) Tata Steel-A 86th 2024 (10)}) 8. Nc3 {[%emt 0:11:19]} Nxc3 {[%emt 0:00:29]} 9. bxc3 {[%emt 0:00:08]} Bd7 {[%emt 0:00:06]} 10. Qxc4 {[%emt 0:00:09]} Rb8 {[%emt 0:00:21]} 11. Be2 {[%emt 0:03:04]} Bd6 {[%emt 0:01:53]} 12. O-O {[%emt 0:03:09]} Ne7 {[%emt 0:04:30]} 13. a4 {[%emt 0:06:34]} Ng6 {[%emt 0:03:32]} 14. Be3 {[%emt 0:03:35]} O-O {[%emt 0:02:00]} 15. Ne5 {[%emt 0:06:24]} a5 {[%emt 0:02:07]} 16. Nxd7 {[%emt 0:06:29]} Qxd7 {[%emt 0:00:08]} 17. Bf3 {[%emt 0:00:42]} Rb6 {[%emt 0:20:22]} 18. g3 {[%emt 0:03:03]} Rfb8 {[%emt 0:06:19]} 19. Be4 {[%emt 0:05:36]} c6 {[%emt 0:15:43]} 20. Qd3 {[%emt 0:05:05]} Kh8 {[%emt 0:02:50]} 21. Rab1 {[%emt 0:02:06]} Rxb1 {[%emt 0:04:19]} 22. Rxb1 {[%emt 0:00:04]} Rxb1+ {[%emt 0:00:48]} 23. Qxb1 {[%emt 0:00:04]} Qc7 {[%emt 0:02:16]} 24. Bd2 {[%emt 0:04:02]} Ne7 {[%emt 0:02:38]} 25. c4 {[%emt 0:00:23]} Qa7 {[%emt 0:00:11]} 26. Bc3 {[%emt 0:00:36]} h6 {[%emt 0:01:03]} 27. Qb2 {[%emt 0:11:35]} Kg8 {[%emt 0:03:52]} 28. Bd3 {[%emt 0:00:35]} g6 {[%emt 0:04:18]} 29. Qd2 {[%emt 0:02:11]} c5 {[%emt 0:06:00]} 30. d5 {[%emt 0:01:12]} exd5 {[%emt 0:00:52]} 31. cxd5 {[%emt 0:00:18]} Nxd5 {[%emt 0:02:01]} (31... Qb8 $16 {was necessary.} 32. Bxa5 (32. Qxh6 Be5 $16) 32... Qb3 33. Qc2) 32. Bb2 $18 {[%emt 0:10:11]} (32. Bxa5 $6 Bc7 33. Bxc7 Qxc7) 32... Qe7 {[%emt 0:06:24]} 33. Qxa5 {[%emt 0:06:14]} ({And not} 33. Qxh6 Be5 34. Bc4 Bxb2 $11) 33... Nb4 {[%emt 0:00:35]} 34. Qa8+ {[%emt 0:00:17]} Qf8 {[%emt 0:00:04]} 35. Qf3 {[%emt 0:00:14]} Nxd3 {[%emt 0:06:38]} 36. Qxd3 {[%emt 0:00:12]} Qb8 {[%emt 0:00:05]} 37. Qc3 {[%emt 0:00:55]} Kf8 {[%emt 0:00:01]} 38. a5 {[%emt 0:00:15]} Qb4 {[%emt 0:03:08]} (38... Ke8 $142 39. a6 Qb6) 39. Qh8+ $18 {[%emt 0:06:07]} Ke7 {[%emt 0:00:01]} 40. Qf6+ {[%emt 0:00:00]} Kd7 {[%emt 0:00:00]} 41. Qxf7+ {[%emt 0:00:07]} Be7 {[%emt 0:08:23]} 42. Qd5+ {[%emt 0:10:13]} Bd6 {[%emt 0:00:42] [#]} 43. Bg7 $1 {[%emt 0:00:44]} Qxa5 {[%emt 0:01:37]} 44. Qf7+ {[%emt 0:02:23]} ({Don't take} 44. Bxh6 $6 Qe1+ 45. Kg2 Qe6 46. Qb7+ Ke8 $16) 44... Be7 {[%emt 0:04:39]} 45. Qxg6 {[%emt 0:00:23]} Qe1+ {[%emt 0:05:06]} 46. Kg2 {[%emt 0:00:01]} c4 {[%emt 0:00:07]} 47. Bxh6 {[%emt 0:00:48]} ({Weaker is} 47. Qxh6 Qe4+ 48. Kh3 Qf5+ 49. Kg2 Qe4+ 50. Kh3 Qf5+ 51. Kg2 Qe4+ $11) 47... Bc5 {[%emt 0:00:53]} 48. Qf7+ {[%emt 0:01:45]} Kc6 {[%emt 0:00:05]} 49. Qxc4 {[%emt 0:03:26]} Qxf2+ {[%emt 0:00:04]} 50. Kh3 {[%emt 0:00:02]} Qf5+ {[%emt 0:00:04]} 51. Qg4 {[%emt 0:00:42]} Qd5 {[%emt 0:02:11]} 52. Bf4 {[%emt 0:01:04]} Kb7 {[%emt 0:01:55]} 53. Qe2 {[%emt 0:00:21]} Qf5+ {[%emt 0:02:45]} 54. Kg2 {[%emt 0:00:05]} Kb6 {[%emt 0:02:36]} 55. h4 {[%emt 0:00:14]} Qd5+ {[%emt 0:00:27]} 56. Qf3 {[%emt 0:00:06]} Qa2+ {[%emt 0:00:33]} 57. Kh3 {[%emt 0:00:04]} Qe6+ {[%emt 0:01:48]} 58. g4 {[%emt 0:00:02]} Qe1 {[%emt 0:00:06]} 59. Bg3 {[%emt 0:00:10]} Qe6 {[%emt 0:00:03]} 60. h5 {[%emt 0:00:20]} Be7 {[%emt 0:01:04]} 61. Bf4 {[%emt 0:00:39]} Bc5 {[%emt 0:00:15]} 62. h6 {[%emt 0:02:31]} Qf7 {[%emt 0:00:37]} 63. Qe4 {[%emt 0:00:45]} Qb3+ {[%emt 0:00:04]} 64. Bg3 {[%emt 0:00:37]} (64. Kh4 $142 Bf2+ 65. Kg5) 64... Qc3 {[%emt 0:00:35]} 65. Qe6+ {[%emt 0:00:23]} Kb5 {[%emt 0:00:33]} 66. h7 {[%emt 0:00:26]} (66. Qe8+ $142 Kb6 67. Qe6+ Kb5 68. Qe8+ Kb4 69. Qe1 Bd4 70. g5 Qxe1 71. Bxe1+ Kc5 72. g6) 66... Bd4 $18 {[%emt 0:00:03]} 67. Qe8+ {[%emt 0:02:02]} Kb6 {[%emt 0:00:06]} 68. Qb8+ {[%emt 0:00:25]} Ka6 {[%emt 0:00:01]} 69. Qa8+ {[%emt 0:01:44]} Kb6 {[%emt 0:00:04]} 70. Qe4 {[%emt 0:00:16]} Bh8 {[%emt 0:01:47]} 71. g5 {[%emt 0:00:18]} Qc8+ {[%emt 0:00:22]} 72. Kh4 {[%emt 0:00:06]} Qd7 {[%emt 0:00:15]} 73. Qb4+ {[%emt 0:00:52]} 1-0

[Event "5th Shenzhen Longgang Masters 2024"]
[Site "Shengzhen"]
[Date "2024.03.04"]
[Round "5.1"]
[White "Giri, Anish"]
[Black "Xu, Xiangyu"]
[Result "1/2-1/2"]
[ECO "A90"]
[WhiteElo "2749"]
[BlackElo "2623"]
[Annotator "TA"]
[PlyCount "62"]
[EventDate "2024.02.28"]
[EventType "tourn"]
[EventCountry "CHN"]
[SourceTitle "playchess.com"]
[Source "ChessBase"]
[SourceQuality "1"]
[TimeControl "40/5400+30:1800+30"]

{[%evp 18,62,23,12,41,42,67,42,51,42,51,26,29,29,26,24,41,24,31,35,67,13,9,14,24,10,25,6,12,6,23,-10,29,-24,-23,-27,-20,-20,-20,-13,-13,-8,-8,-8,0,0,0]} 1. c4 {[%emt 0:00:02]} Nf6 {[%emt 0:00:10]} 2. Nf3 {[%emt 0:00:09]} e6 {[%emt 0:02:11]} 3. b3 {[%emt 0:00:35]} d5 {[%emt 0:05:36]} 4. Bb2 {[%emt 0:00:19]} Bd6 {[%emt 0:00:18]} 5. g3 {[%emt 0:00:25]} Nbd7 {[%emt 0:13:49]} 6. Bg2 {[%emt 0:03:55]} O-O {[%emt 0:00:09]} 7. O-O {[%emt 0:00:34]} c6 {[%emt 0:00:13]} 8. d4 {[%emt 0:00:51]} Ne4 {[%emt 0:00:08]} 9. Nc3 {[%emt 0:08:45]} f5 {[%emt 0:03:48]} 10. Qc2 {[%emt 0:14:38]} Ndf6 {[%emt 0:03:57]} 11. Ne5 {[%emt 0:01:16]} Bd7 {[%emt 0:01:38]} 12. e3 {[%emt 0:05:16]} Nxc3 {[%emt 0:05:01] White is slightly better.} 13. Bxc3 {[%emt 0:00:21]} Be8 {[%emt 0:00:28]} 14. c5 {[%emt 0:02:49]} Bc7 {[%emt 0:03:51]} 15. b4 {[%emt 0:00:16]} Qe7 {[%emt 0:00:35]} 16. a4 {[%emt 0:13:09]} Ne4 {[%emt 0:07:34]} 17. Bb2 {[%emt 0:03:08]} a6 {[%emt 0:09:07]} 18. f3 {[%emt 0:00:42]} Ng5 {[%emt 0:00:45]} 19. f4 {[%emt 0:03:19]} (19. Qb3 $14) 19... Ne4 $11 {[%emt 0:00:33]} 20. Qe2 {[%emt 0:00:53]} Bd7 {[%emt 0:11:28]} 21. a5 {[%emt 0:04:39]} Be8 {[%emt 0:05:59]} 22. Kh1 {[%emt 0:05:36]} Rd8 {[%emt 0:01:29]} 23. Rfe1 {[%emt 0:04:26]} Qf6 {[%emt 0:01:23]} 24. Bxe4 {[%emt 0:01:08]} fxe4 {[%emt 0:01:27]} (24... dxe4 $5 25. d5 Rxd5 $14 (25... cxd5 26. Nd7 $14)) 25. h4 {[%emt 0:01:11]} (25. Rf1 $142) 25... h5 {[%emt 0:03:40]} 26. Rg1 {[%emt 0:01:08]} Bxe5 {[%emt 0:00:21]} 27. dxe5 {[%emt 0:00:04] The position is equal.} Qh6 {[%emt 0:01:31]} 28. Kh2 {[%emt 0:02:49]} Bg6 {[%emt 0:00:42]} 29. g4 {[%emt 0:02:14]} hxg4 {[%emt 0:00:15]} 30. Qxg4 {[%emt 0:00:02]} Bf5 {[%emt 0:00:10]} 31. Qg5 {[%emt 0:00:09]} Kf7 {[%emt 0:00:28] Weighted Error Value: White=0.15 (very precise) /Black=0.10 (very precise) .  Mistake:       	White=2     	---        Inaccurate:     	White=1     	Black=2      OK:         	White=4     	Black=11} (31... Qxg5 32. hxg5 (32. Rxg5 Kf7 $11) 32... Kf7 33. Kg3) 1/2-1/2

[Event "5th Shenzhen Longgang Masters 2024"]
[Site "Shengzhen"]
[Date "2024.03.04"]
[Round "5.2"]
[White "Ma, Qun"]
[Black "Bu, Xiangzhi"]
[Result "1/2-1/2"]
[ECO "D38"]
[WhiteElo "2651"]
[BlackElo "2671"]
[Annotator "TA"]
[PlyCount "86"]
[EventDate "2024.02.28"]
[EventType "tourn"]
[EventCountry "CHN"]
[SourceTitle "playchess.com"]
[Source "ChessBase"]
[SourceQuality "1"]
[TimeControl "40/5400+30:1800+30"]

{[%evp 18,86,17,16,29,19,17,27,8,0,14,0,0,0,0,0,0,-10,0,-1,0,0,0,0,235,231,236,231,230,238,222,108,116,110,104,84,79,75,89,85,76,80,81,87,78,77,80,64,77,85,153,162,180,172,140,164,177,192,234,82,74,19,15,10,10,4,12,6,4,0,6]} 1. d4 {[%emt 0:00:07]} Nf6 {[%emt 0:00:18]} 2. c4 {[%emt 0:00:13]} e6 {[%emt 0:00:13]} 3. Nf3 {[%emt 0:00:08]} d5 {[%emt 0:00:18]} 4. Nc3 {[%emt 0:00:21]} Bb4 {[%emt 0:00:39]} 5. Bg5 {[%emt 0:00:57]} h6 {[%emt 0:00:54]} 6. Bxf6 {[%emt 0:00:08]} Qxf6 {[%emt 0:00:06]} 7. e3 {[%emt 0:00:14]} O-O {[%emt 0:00:19]} 8. Rc1 {[%emt 0:00:20]} dxc4 {[%emt 0:01:11]} 9. Bxc4 {[%emt 0:00:08]} c5 {[%emt 0:00:06]} 10. O-O {[%emt 0:00:19] With the idea Ne4.} cxd4 {[%emt 0:00:21]} 11. Ne4 {[%emt 0:00:20]} Qe7 {[%emt 0:00:20]} 12. a3 {[%emt 0:00:27]} Ba5 {[%emt 0:00:31] White has an edge.} 13. exd4 {[%emt 0:00:15]} Rd8 {[%emt 0:00:51]} 14. b4 {[%emt 0:00:39]} Bb6 {[%emt 0:01:50]} 15. Rc3 {[%emt 0:00:14]} Bd7 {[%emt 0:04:21]} 16. Re1 {[%emt 0:00:48]} Bc6 {[%emt 0:02:39]} 17. Ng3 {[%emt 0:01:09]} Qd6 {[%emt 0:09:54][%cal Oc6f3]} 18. Nh5 {[%emt 0:00:12]} Nd7 {[%emt 0:03:02] aiming for ...Bxf3.} (18... Bxd4 $2 19. Nxd4 $18) 19. Rd3 {[%emt 0:00:11]} Rac8 {[%emt 0:34:40] ...Bxf3 is the strong threat.} 20. d5 {[%emt 0:00:20]} Ba4 $2 {[%emt 0:13:33]} 21. Qxa4 $18 {[%emt 0:41:54][%cal Rd5e6]} (21. dxe6 Bxf2+ (21... Bxd1 22. Rxd6 Bxf3 23. exd7 $16) 22. Kf1 Bxd1 $11) 21... Rxc4 {[%emt 0:00:04]} 22. Qb3 $1 {[%emt 0:00:05]} Qc7 {[%emt 0:02:06]} (22... exd5 $2 {loses.} 23. Qxc4 $18) 23. dxe6 {[%emt 0:00:26]} fxe6 {[%emt 0:01:07]} 24. Red1 {[%emt 0:00:07]} (24. Rxe6 $6 Rc1+ 25. Re1+ Kh8 $16) (24. g3 $1 $18 Rc8 25. Nd2 (25. Rxe6 Nf8 $18)) 24... Rc1 $16 {[%emt 0:02:13]} 25. Qxe6+ {[%emt 0:04:11]} Kh8 {[%emt 0:00:08][%cal Od7c5]} 26. Qg4 {[%emt 0:15:42][%csl Gh5][%cal Rg4g7] The board is on fire. White has more active pieces.} Rxd1+ {[%emt 0:00:37]} 27. Rxd1 {[%emt 0:00:02][%csl Gh5][%cal Rg4g7]} Nf8 {[%emt 0:00:26]} 28. Re1 {[%emt 0:01:16]} Qf7 {[%emt 0:01:58][%cal Od8d2]} 29. h4 $40 {[%emt 0:15:01][%mdl 128] White is out for blood.} Qg6 {[%emt 0:08:44]} 30. Ne5 {[%emt 0:06:48]} Qxg4 {[%emt 0:00:05]} 31. Nxg4 {[%emt 0:00:02] Excellent horsemanship.} Ng6 {[%emt 0:00:20][%cal Od8d4]} 32. g3 {[%emt 0:00:06]} Kg8 {[%emt 0:05:17]} 33. Kg2 {[%emt 0:00:08]} Kf7 {[%emt 0:00:24] [#]} (33... Rd2 $142) 34. f4 $1 {[%emt 0:03:25]} Rd5 {[%emt 0:02:59]} 35. Ne5+ {[%emt 0:00:55]} Nxe5 {[%emt 0:00:03]} 36. fxe5 $18 {[%emt 0:00:13][%mdl 4096] Endgame. Hoping for e6+. KRB-KRN} g5 {[%emt 0:00:52]} 37. Nf6 {[%emt 0:07:09]} Rd8 {[%emt 0:02:59] [#]} 38. hxg5 {[%emt 0:00:02]} (38. h5 $1 $18) 38... hxg5 $16 {[%emt 0:00:01]} 39. Kf3 {[%emt 0:00:02]} (39. Ne4 $16) 39... Ke6 $11 {[%emt 0:00:41] The position is equal.} 40. Kg4 {[%emt 0:00:00][%cal Of6h7] Threatens to win with Nh7!} Rd3 $1 {[%emt 0:00:00]} 41. Ne4 {[%emt 0:16:37]} Be3 {[%emt 0:09:45]} 42. a4 {[%emt 0:01:29]} (42. Nxg5+ Bxg5 43. Kxg5 Rxg3+ 44. Kf4 Rxa3) 42... Ra3 {[%emt 0:00:25]} 43. Nc5+ {[%emt 0:11:28]} Kxe5 {[%emt 0:00:18] White really could win this.   Weighted Error Value: White=0.12 (very precise) /Black=0.15 (very precise) .  Loses game:     	---       	Black=1      Mistake:       	White=3     	Black=1      OK:         	White=17    	Black=13     Best:        	White=2     	Black=7      Strong:       	White=2     	Black=1} 1/2-1/2